fUSD/lending_fUSD_20250329
["ID","MTS","AMOUNT","RATE_DAILY","PERIOD"]
[356829365,1743280242838,-151.0,0.00014972,2]
[356829366,1743280242847,-151.0,0.00014972,2]
[356829367,1743280242857,-151.0,0.00014972,2]
[356829368,1743280242867,-151.0,0.00014972,2]
[356829369,1743280242877,-151.0,0.00014972,2]
[356829370,1743280242886,-151.0,0.00014972,2]
[356829371,1743280242896,-151.0,0.00014972,2]
[356829372,1743280242906,-151.0,0.00014972,2]
[356829373,1743280242916,-151.0,0.00014972,2]
[356829374,1743280242926,-151.0,0.00014972,2]
[356829375,1743280242935,-151.0,0.00014972,2]
[356829376,1743280242945,-151.0,0.00014972,2]
[356829377,1743280242955,-151.0,0.00014972,2]
[356829378,1743280242964,-151.0,0.00014972,2]
[356829379,1743280242974,-289.830345,0.00014972,2]
[356829380,1743280242984,-151.0,0.00014972,2]
[356829381,1743280242994,-170.232935,0.00014972,2]
[356829382,1743280243003,-151.0,0.00014972,2]
[356829383,1743280243013,-151.0,0.00014972,2]
[356829384,1743280243024,-151.0,0.00014972,2]
[356829385,1743280243034,-151.0,0.00014972,2]
[356829386,1743280243044,-151.0,0.00014972,2]
[356829387,1743280243054,-151.0,0.00014972,2]
[356829388,1743280243064,-151.0,0.00014972,2]
[356829389,1743280243074,-151.0,0.00014972,2]
[356829390,1743280243083,-235.533864,0.00014972,2]
[356829391,1743280243093,-272.636295,0.00014972,2]
[356829392,1743280243102,-272.636295,0.00014972,2]
[356829393,1743280243112,-272.636295,0.00014972,2]
[356829394,1743280243121,-272.636295,0.00014972,2]
[356829395,1743280243132,-151.0,0.00014972,2]
[356829396,1743280243142,-151.0,0.00014972,2]
[356829397,1743280243151,-236.68,0.00014981,2]
[356829398,1743280243161,-151.0,0.00014981,2]
[356829399,1743280243171,-151.0,0.00014981,2]
[356829400,1743280243181,-1274.0,0.00014984,2]
[356829402,1743280243190,-788.0,0.00014984,2]
[356829404,1743280243199,-1432.0,0.00014984,2]
[356829406,1743280243210,-908.0,0.00014984,2]
[356829408,1743280243219,-543.0,0.00014984,2]
[356829410,1743280243228,-4090.0,0.00014984,2]
[356829412,1743280243238,-151.0,0.00014984,2]
[356829414,1743280243247,-2038.0,0.00014984,2]
[356829415,1743280243257,-642.0,0.00014984,2]
[356829416,1743280243267,-151.0,0.00014984,2]
[356829418,1743280243277,-151.0,0.00014984,2]
[356829419,1743280243287,-151.0,0.00014984,2]
[356829420,1743280243297,-151.0,0.00014984,2]
[356829421,1743280243307,-151.0,0.00014984,2]
[356829422,1743280243317,-151.0,0.00014984,2]
[356829423,1743280243327,-151.0,0.00014984,2]
[356829424,1743280243336,-151.0,0.00014984,2]
[356829425,1743280243346,-165.833432,0.00014984,2]
[356829426,1743280243356,-188.274816,0.00014984,2]
[356829427,1743280243366,-151.0,0.00014984,2]
[356829428,1743280243376,-151.0,0.00014984,2]
[356829429,1743280243386,-151.0,0.00014984,2]
[356829430,1743280243395,-151.0,0.00014984,2]
[356829431,1743280243558,-272.636295,0.00014984,2]
[356829433,1743280243568,-272.636295,0.00014984,2]
[356829435,1743280243578,-272.636295,0.00014984,2]
[356829437,1743280243587,-272.636291,0.00014984,2]
[356829439,1743280243597,-151.0,0.00014984,2]
[356829441,1743280243607,-151.0,0.00014984,2]
[356829443,1743280243617,-567.908,0.00014999,2]
[356829445,1743280243627,-300.0,0.00014999,2]
[356829447,1743280243636,-15683.4965249,0.00015,2]
[356829467,1743280275281,192.4452294,0.00014555,2]
[356829470,1743280320144,192.4452295,0.00014555,2]
[356829472,1743280344161,730.88,0.00014247,2]
[356829473,1743280365082,192.4452295,0.00014555,2]
[356829475,1743280836880,1000.0,0.00014797,2]
[356829476,1743280932578,150.0,0.0001472,7]
[356829477,1743281031052,-150.93927295,0.00014822,2]
[356829478,1743281043505,-150.0,0.00014821,2]
[356829481,1743281222805,-168.48,0.00014821,2]
[356829497,1743281345983,-150.81126082,0.00014821,2]
[356829556,1743281379999,160.35,0.00014676,2]
[356829557,1743281399565,694.33,0.00012759,2]
[356829558,1743281402378,-158.8258547,0.00014821,2]
[356829559,1743281408216,-141.1741453,0.00014821,2]
[356829561,1743281408244,-7822.14993327,0.00014822,2]
[356829563,1743281408281,-7963.32407857,0.00014822,2]
[356829564,1743281408322,-7903.33421698,0.00014822,2]
[356829574,1743281431450,-60.25249823,0.00014822,2]
[356829575,1743281431460,-150.0,0.00014899,2]
[356829576,1743281431471,-1403.4162,0.000149,2]
[356829577,1743281431481,-190.8924,0.000149,2]
[356829578,1743281431490,-1211.7862,0.000149,2]
[356829579,1743281431500,-851.2652,0.000149,2]
[356829580,1743281431510,-173.08144068,0.000149,2]
[356829581,1743281431519,-178.9871,0.000149,2]
[356829582,1743281431529,-2500.0,0.000149,2]
[356829583,1743281431538,-659.65492237,0.000149,2]
[356829584,1743281431548,-199.1388956,0.000149,2]
[356829585,1743281431557,-160.96844539,0.000149,2]
[356829586,1743281431567,-503.60612025,0.00014973,2]
[356829587,1743281431578,-1422.0,0.00014984,2]
[356829588,1743281431587,-572.0,0.00014984,2]
[356829589,1743281431597,-1066.232,0.00014984,2]
[356829590,1743281431606,-541.0,0.00014984,2]
[356829591,1743281431617,-906.0,0.00014984,2]
[356829592,1743281431628,-1432.0,0.00014984,2]
[356829593,1743281431638,-1117.0,0.00014984,2]
[356829594,1743281431648,-8756.94526099,0.0001499,2]
[356829595,1743281431657,-454.327,0.00014999,2]
[356829596,1743281431667,-300.0,0.00014999,2]
[356829597,1743281431677,-5409.35177004,0.00015,2]
[356829598,1743281431694,-556.74216387,0.00015,2]
[356829625,1743281437462,-9020.0,0.00015,2]
[356829636,1743281439591,-0.03886005,0.00015,2]
[356829637,1743281439784,-715.2528882,0.00015,2]
[356829638,1743281439795,-414.26,0.00015,2]
[356829759,1743281443907,-369.81054914,0.00015,2]
[356829765,1743281646851,-665.8167,0.000149,2]
[356829766,1743281646877,-1629.3544,0.000149,2]
[356829767,1743281646903,-156.49987006,0.000149,2]
[356829768,1743281646932,-935.1794,0.000149,2]
[356829769,1743281646957,-500.0,0.000149,2]
[356829770,1743281646981,-191.6396,0.000149,2]
[356829771,1743281647007,-956.8,0.000149,2]
[356829772,1743281647039,-250.0,0.0001494,2]
[356829773,1743281647064,-300.0,0.00014999,2]
[356829774,1743281647090,-501.0,0.00015,2]
[356829775,1743281647116,-56613.71002994,0.00015,2]
[356829777,1743282084167,150.0,0.00014273,7]
[356829778,1743282303712,177.0,0.000103,5]
[356829779,1743282353734,1534.60506545,0.0001438,2]
[356829780,1743282353758,10000.0,0.0001438,2]
[356829781,1743282353780,10000.0,0.0001438,2]
[356829782,1743282353803,2365.39493455,0.0001438,2]
[356829791,1743282432893,155.31,0.00014216,2]
[356829797,1743282508593,659.61,0.00012384,2]
[356829798,1743282509064,659.61,0.00014648,2]
[356829799,1743282549048,250.0,0.00014302,2]
[356829804,1743282631593,-211.6081,0.000149,2]
[356829805,1743282631603,-1436.88221376,0.000149,2]
[356829806,1743282631615,-6025.71418624,0.000149,2]
[356829807,1743282631625,-276.32279648,0.000149,2]
[356829808,1743282631637,-2735.55010352,0.000149,2]
[356829809,1743282631646,-159.38001228,0.000149,2]
[356829810,1743282631655,-650.09035683,0.000149,2]
[356829811,1743282631665,-169.30886936,0.000149,2]
[356829812,1743282631674,-199.1388956,0.000149,2]
[356829813,1743282631684,-650.09035675,0.0001493,2]
[356829814,1743282631693,-169.30886927,0.0001493,2]
[356829815,1743282631703,-2000.0,0.0001494,2]
[356829816,1743282631712,-1000.0,0.0001494,2]
[356829817,1743282631722,-1117.0,0.00014948,2]
[356829818,1743282631731,-650.09035675,0.00014961,2]
[356829819,1743282631741,-169.30886927,0.00014961,2]
[356829820,1743282631752,-500.0,0.00014973,2]
[356829821,1743282631762,-650.09035675,0.00014991,2]
[356829822,1743282631771,-169.30886927,0.00014991,2]
[356829823,1743282631782,-508.0,0.00015,2]
[356829824,1743282631792,-13190.27978761,0.00015,2]
[356829825,1743282631815,-3414.38374902,0.00015,2]
[356829829,1743282637664,-262.05505227,0.00015,2]
[356829830,1743282637769,-5559.6219693,0.00015,2]
[356829833,1743282637779,-10787.29263566,0.00015,2]
[356829925,1743282639710,-1409.19269185,0.00015,2]
[356829926,1743282639722,-2485.50437655,0.00015,2]
[356829999,1743282672667,-334.47946949,0.00014816,2]
[356830000,1743282690518,208.6701415,0.00014557,2]
[356830001,1743282735222,208.6701416,0.00014557,2]
[356830002,1743283266420,150.0,0.00014147,7]
[356830004,1743283442928,172.90761,0.00015,13]
[356830009,1743283618902,3023.46,0.00014099,2]
[356830017,1743283668428,593.64,0.00012181,2]
[356830018,1743283668698,593.64,0.00014445,2]
[356830021,1743283714942,1679.23841667,9.828e-05,2]
[356830043,1743283822166,160.35,0.00014147,2]
[356830052,1743283831927,-1665.52053051,0.00014816,2]
[356830053,1743283831939,-1000.0,0.00014883,2]
[356830054,1743283831950,-245.13997856,0.0001489,2]
[356830055,1743283831960,-300.0,0.00014899,2]
[356830056,1743283831971,-1672.823,0.000149,2]
[356830057,1743283831980,-159.38001227,0.000149,2]
[356830058,1743283831991,-274.60987094,0.000149,2]
[356830059,1743283832001,-1634.28058741,0.000149,2]
[356830060,1743283832010,-1463.52900175,0.000149,2]
[356830061,1743283832020,-390.05421405,0.000149,2]
[356830062,1743283832030,-390.05421405,0.000149,2]
[356830063,1743283832040,-390.05421405,0.000149,2]
[356830064,1743283832050,-390.05421405,0.000149,2]
[356830065,1743283832059,-390.05421405,0.000149,2]
[356830066,1743283832069,-390.05421405,0.00014901,2]
[356830067,1743283832079,-390.05421405,0.00014901,2]
[356830068,1743283832089,-390.05421405,0.00014901,2]
[356830069,1743283832098,-390.05421405,0.00014901,2]
[356830070,1743283832108,-289.94,0.00014916,2]
[356830072,1743283832118,-274.60987092,0.0001493,2]
[356830074,1743283832128,-500.0,0.00014959,2]
[356830076,1743283832137,-500.0,0.00014959,2]
[356830078,1743283832147,-500.0,0.00014959,2]
[356830080,1743283832156,-274.60987092,0.00014961,2]
[356830082,1743283832165,-185.0,0.00014986,2]
[356830084,1743283832176,-150.0,0.00014989,2]
[356830086,1743283832185,-13451.15088939,0.0001499,2]
[356830087,1743283832195,-7847.00558077,0.00014991,2]
[356830089,1743283832207,-417.34028309,0.00014991,2]
[356830108,1743283837814,-870.39141704,0.00014898,2]
[356830109,1743283837980,-246.60858296,0.00014898,2]
[356830110,1743283837991,-390.05421405,0.00014901,2]
[356830111,1743283838001,-1890.63712447,0.00014991,2]
[356830112,1743283838010,-274.60987092,0.00014991,2]
[356830113,1743283838020,-470.011,0.00014999,2]
[356830114,1743283838029,-300.0,0.00014999,2]
[356830115,1743283838039,-15948.36593236,0.00015,2]
[356830117,1743283838051,-493.97951791,0.00015,2]
[356830125,1743283839976,-152091.89368651,0.00015,2]
[356830126,1743283839988,-556.02283201,0.00015,2]
[356830127,1743283840039,-13410.59073648,0.00015,2]
[356830128,1743283840051,-781.42744112,0.00015,2]
[356830129,1743283840154,-1497.4590548,0.00015,2]
[356830130,1743283840166,-2549.05889236,0.00015,2]
[356830131,1743283840179,-28039.18716485,0.00015,2]
[356830146,1743283843960,-41294.69998397,0.00015,2]
[356830147,1743283844019,-1498.19622131,0.00015,2]
[356830149,1743283845364,-16412.55338855,0.00015,2]
[356830150,1743283845376,-3040.69466733,0.00015,2]
[356830151,1743283845394,-491.738,0.00015,2]
[356830155,1743283845731,-24163.09114154,0.00015,2]
[356830156,1743283845743,-949.37044208,0.00015,2]
[356830157,1743283845755,-236660.59147633,0.00015,2]
[356830187,1743283890164,151.9728141,0.00014557,2]
[356830191,1743283935096,151.9728142,0.00014557,2]
[356830195,1743283963171,150.0,0.00014778,2]
[356830196,1743283970962,150.0,0.00014754,2]
[356830197,1743283980127,151.9728142,0.00014557,2]
[356830198,1743284011835,-171.8459276,0.000148,2]
[356830199,1743284022950,171.8459276,0.00014726,2]
[356830200,1743284023308,1000.0,0.00014147,2]
[356830201,1743284070197,151.9728142,0.00014556,2]
[356830202,1743284105870,200.0,0.00014798,2]
[356830203,1743284132346,-150.0,0.000148,2]
[356830204,1743284214148,435.57,0.00014752,2]
[356830205,1743284223459,172.90761,0.00015,13]
[356830206,1743284243549,-188.0768862,0.000148,2]
[356830207,1743284249274,500.0,0.00015,13]
[356830208,1743284249534,252.0,0.00015,13]
[356830209,1743284353236,-181.98095667,0.000148,2]
[356830210,1743284359818,150.0,0.00014669,7]
[356830211,1743284369336,1406.69,0.00014669,2]
[356830212,1743284470739,150.0,0.00014669,2]
[356830213,1743284569676,155.31,0.00014761,2]
[356830214,1743284637317,648.81,0.00014761,2]
[356830215,1743284685762,1233.92,0.00014761,2]
[356830219,1743284789336,877.61,0.00012843,2]
[356830319,1743284846038,200.0,0.00014697,2]
[356830329,1743284973415,160.32,0.00014632,2]
[356830330,1743284973456,160.32,0.00014663,2]
[356830331,1743284973620,160.32,0.00014694,2]
[356830332,1743284973904,160.32,0.00014725,2]
[356830333,1743284974108,160.32,0.00014755,2]
[356830334,1743284974362,160.32,0.00014786,2]
[356830335,1743284977895,1178.38,0.00014321,2]
[356830338,1743285032026,-160.32,0.00014817,2]
[356830339,1743285032036,-160.32,0.00014848,2]
[356830340,1743285032047,-160.32,0.00014879,2]
[356830341,1743285032056,-150.0,0.00014899,2]
[356830342,1743285032067,-664.3492,0.000149,2]
[356830343,1743285032077,-52.85464016,0.000149,2]
[356830344,1743285032089,-864.08075984,0.000149,2]
[356830345,1743285032098,-326.5775,0.000149,2]
[356830346,1743285032107,-167.39555925,0.000149,2]
[356830347,1743285032116,-503.8008015,0.000149,2]
[356830348,1743285032137,-374.56720625,0.000149,2]
[356830349,1743285032254,-654.13901918,0.000149,2]
[356830350,1743285032317,-712.02367317,0.000149,2]
[356830351,1743285032330,-1997.21734795,0.000149,2]
[356830376,1743285034873,250.0,0.00014189,2]
[356830389,1743285040131,-3058.76357476,0.000149,2]
[356830390,1743285040142,-1001.28480599,0.000149,2]
[356830391,1743285040153,-160.32,0.00014909,2]
[356830392,1743285040163,-160.32,0.0001494,2]
[356830393,1743285040173,-150.0,0.00014942,2]
[356830394,1743285040182,-150.0,0.00014959,2]
[356830395,1743285040191,-160.32,0.00014971,2]
[356830396,1743285040200,-1282.0,0.00014984,2]
[356830397,1743285040210,-2039.0,0.00014984,2]
[356830398,1743285040220,-643.0,0.00014984,2]
[356830399,1743285040229,-1422.0,0.00014984,2]
[356830400,1743285040239,-573.0,0.00014984,2]
[356830401,1743285040249,-1274.0,0.00014984,2]
[356830402,1743285040259,-788.0,0.00014984,2]
[356830403,1743285040269,-4090.0,0.00014984,2]
[356830404,1743285040278,-908.0,0.00014984,2]
[356830405,1743285040287,-1432.0,0.00014984,2]
[356830406,1743285040297,-543.0,0.00014984,2]
[356830407,1743285040306,-3946.0,0.00014984,2]
[356830408,1743285040315,-151.0,0.00014984,2]
[356830409,1743285040325,-1117.0,0.00014984,2]
[356830410,1743285040334,-413.894,0.00014999,2]
[356830411,1743285040344,-2628.94,0.00014999,2]
[356830412,1743285040354,-582.0,0.00015,2]
[356830413,1743285040363,-184424.93066541,0.00015,2]
[356830414,1743285040373,-1046531.36607353,0.00015,2]
[356830415,1743285040383,-998113.93203705,0.00015,2]
[356830416,1743285040392,-1095054.30094569,0.00015,2]
[356830417,1743285040402,-150.0,0.00015,2]
[356830418,1743285040411,-564.31395274,0.00015,2]
[356830419,1743285040421,-150.0,0.00015,2]
[356830420,1743285040431,-317.56545914,0.00015,2]
[356830421,1743285040441,-521033.58574106,0.00015,2]
[356830422,1743285040450,-378477.69440034,0.00015,2]
[356830423,1743285040460,-125058.31721334,0.00015,2]
[356830424,1743285040470,-6790.24943225,0.00015,2]
[356830425,1743285040494,-692844.72623809,0.00015,2]
[356830426,1743285040503,-151.0,0.00015,2]
[356830427,1743285040512,-151.0,0.00015,2]
[356830428,1743285040522,-151.0,0.00015,2]
[356830429,1743285040531,-151.0,0.00015,2]
[356830430,1743285040541,-151.0,0.00015,2]
[356830431,1743285040550,-151.0,0.00015,2]
[356830432,1743285040559,-151.0,0.00015,2]
[356830433,1743285040568,-151.0,0.00015,2]
[356830434,1743285040578,-151.0,0.00015,2]
[356830435,1743285040587,-151.0,0.00015,2]
[356830436,1743285040597,-151.0,0.00015,2]
[356830437,1743285040606,-151.0,0.00015,2]
[356830438,1743285040616,-151.0,0.00015,2]
[356830439,1743285040625,-151.0,0.00015,2]
[356830440,1743285040635,-151.0,0.00015,2]
[356830441,1743285040645,-174.200362,0.00015,2]
[356830442,1743285040654,-151.0,0.00015,2]
[356830443,1743285040664,-151.0,0.00015,2]
[356830444,1743285040673,-151.0,0.00015,2]
[356830445,1743285040682,-246.650488,0.00015,2]
[356830446,1743285040692,-151.0,0.00015,2]
[356830447,1743285040701,-151.0,0.00015,2]
[356830448,1743285040710,-151.0,0.00015,2]
[356830449,1743285040720,-151.0,0.00015,2]
[356830450,1743285040734,-151.0,0.00015,2]
[356830451,1743285040743,-154.686653,0.00015,2]
[356830452,1743285040753,-151.0,0.00015,2]
[356830453,1743285040763,-151.0,0.00015,2]
[356830454,1743285040773,-151.0,0.00015,2]
[356830455,1743285040783,-151.0,0.00015,2]
[356830456,1743285040792,-151.0,0.00015,2]
[356830457,1743285040801,-151.0,0.00015,2]
[356830458,1743285040811,-151.0,0.00015,2]
[356830459,1743285040819,-151.0,0.00015,2]
[356830460,1743285040829,-151.0,0.00015,2]
[356830461,1743285040838,-151.0,0.00015,2]
[356830462,1743285040847,-151.0,0.00015,2]
[356830463,1743285040857,-151.0,0.00015,2]
[356830464,1743285040866,-151.0,0.00015,2]
[356830465,1743285040875,-151.0,0.00015,2]
[356830466,1743285040886,-151.0,0.00015,2]
[356830467,1743285040895,-151.0,0.00015,2]
[356830468,1743285040904,-151.0,0.00015,2]
[356830469,1743285040914,-151.0,0.00015,2]
[356830470,1743285040923,-151.0,0.00015,2]
[356830471,1743285040933,-151.0,0.00015,2]
[356830472,1743285040943,-151.0,0.00015,2]
[356830473,1743285040953,-151.0,0.00015,2]
[356830474,1743285040963,-151.0,0.00015,2]
[356830475,1743285040972,-151.0,0.00015,2]
[356830476,1743285040984,-151.0,0.00015,2]
[356830477,1743285040995,-151.0,0.00015,2]
[356830478,1743285041005,-151.0,0.00015,2]
[356830479,1743285041015,-152.546926,0.00015,2]
[356830480,1743285041025,-151.0,0.00015,2]
[356830481,1743285041035,-151.0,0.00015,2]
[356830482,1743285041044,-151.0,0.00015,2]
[356830483,1743285041054,-151.0,0.00015,2]
[356830484,1743285041064,-151.0,0.00015,2]
[356830485,1743285041074,-160.32,0.00015002,2]
[356830486,1743285041084,-3843.9877868,0.00015003,2]
[356830487,1743285041093,-7168.1577173,0.00015013,2]
[356830488,1743285041103,-158.39,0.00015023,2]
[356830489,1743285041112,-160.32,0.00015033,2]
[356830490,1743285041122,-160.32,0.00015063,2]
[356830491,1743285041132,-160.32,0.00015094,2]
[356830492,1743285041141,-877.61,0.00015107,2]
[356830493,1743285041151,-160.32,0.00015125,2]
[356830494,1743285041161,-160.32,0.00015156,2]
[356830495,1743285041171,-160.32,0.00015187,2]
[356830496,1743285041180,-151.0,0.00015213,2]
[356830497,1743285041190,-151.0,0.00015213,2]
[356830498,1743285041199,-180158.18155959,0.00015213,2]
[356830499,1743285041208,-160.32,0.00015217,2]
[356830500,1743285041218,-161.11,0.00015245,2]
[356830501,1743285041227,-502.33359425,0.00015273,2]
[356830502,1743285041237,-501.58592239,0.00015273,2]
[356830503,1743285041251,-500.0,0.00015273,2]
[356830504,1743285041260,-500.0,0.00015273,2]
[356830505,1743285041270,-502.71159196,0.00015273,2]
[356830506,1743285041280,-1517.64,0.000153,2]
[356830507,1743285041290,-443.95,0.000153,2]
[356830508,1743285041301,-443.95,0.000153,2]
[356830509,1743285041310,-192.75,0.000153,2]
[356830510,1743285041319,-150.0,0.000153,2]
[356830511,1743285041328,-443.36,0.000153,2]
[356830512,1743285041338,-443.36,0.000153,2]
[356830513,1743285041347,-150.0,0.000153,2]
[356830514,1743285041357,-150.0,0.000153,2]
[356830515,1743285041366,-150.0,0.000153,2]
[356830516,1743285041376,-150.0,0.000153,2]
[356830517,1743285041386,-150.0,0.000153,2]
[356830518,1743285041396,-150.0,0.000153,2]
[356830519,1743285041406,-399.14,0.000153,2]
[356830520,1743285041415,-150.0,0.000153,2]
[356830521,1743285041425,-437.26,0.000153,2]
[356830522,1743285041434,-150.0,0.000153,2]
[356830523,1743285041444,-443.95,0.000153,2]
[356830524,1743285041454,-16046.96242975,0.000154,2]
[356830525,1743285041463,-487.96834127,0.000154,2]
[356830526,1743285041473,-157.95,0.000154,2]
[356830527,1743285041482,-648.85,0.000154,2]
[356830528,1743285041492,-163.13,0.000154,2]
[356830529,1743285041502,-150.0,0.000154,2]
[356830530,1743285041511,-443.95,0.000154,2]
[356830531,1743285041520,-885.57,0.000154,2]
[356830532,1743285041530,-154.28,0.000154,2]
[356830533,1743285041539,-171.06,0.000154,2]
[356830534,1743285041548,-373.89,0.000154,2]
[356830535,1743285041558,-151.0,0.000154,2]
[356830536,1743285041567,-443.95,0.000154,2]
[356830537,1743285041576,-150.0,0.000154,2]
[356830538,1743285041586,-150.0,0.000154,2]
[356830539,1743285041595,-443.36,0.000154,2]
[356830540,1743285041605,-346.88,0.000154,2]
[356830541,1743285041615,-150.0,0.000154,2]
[356830542,1743285041625,-150.0,0.000154,2]
[356830543,1743285041636,-302.53,0.000154,2]
[356830544,1743285041645,-150.0,0.000154,2]
[356830545,1743285041655,-443.36,0.000154,2]
[356830546,1743285041664,-150.0,0.000154,2]
[356830547,1743285041674,-150.0,0.000154,2]
[356830548,1743285041683,-150.0,0.000154,2]
[356830549,1743285041693,-443.95,0.000154,2]
[356830550,1743285041703,-346.88,0.000154,2]
[356830551,1743285041713,-150.0,0.000154,2]
[356830552,1743285041722,-346.88,0.000154,2]
[356830553,1743285041731,-443.36,0.000154,2]
[356830554,1743285041741,-150.0,0.000154,2]
[356830555,1743285041750,-443.95,0.000154,2]
[356830556,1743285041765,-150.0,0.000154,2]
[356830557,1743285041774,-443.95,0.000154,2]
[356830558,1743285041783,-443.36,0.000154,2]
[356830559,1743285041793,-346.88,0.000154,2]
[356830560,1743285041803,-150.0,0.000154,2]
[356830561,1743285041812,-150.0,0.000154,2]
[356830562,1743285041822,-150.0,0.000154,2]
[356830563,1743285041831,-296.098098,0.000154,2]
[356830564,1743285041841,-346.88,0.000154,2]
[356830565,1743285041852,-443.36,0.000154,2]
[356830566,1743285041862,-150.0,0.000154,2]
[356830567,1743285041872,-150.0,0.000154,2]
[356830568,1743285041882,-443.95,0.000154,2]
[356830569,1743285041892,-150.0,0.000154,2]
[356830570,1743285041902,-150.0,0.000154,2]
[356830571,1743285041911,-443.36,0.000154,2]
[356830572,1743285041921,-687.74,0.000154,2]
[356830573,1743285041930,-255.17,0.000155,2]
[356830574,1743285041940,-303.13892551,0.00015857,2]
[356830575,1743285041949,-161.11,0.00015874,2]
[356830576,1743285041959,-1000.0,0.00015915,2]
[356830577,1743285041969,-4538.95322762,0.00016,2]
[356830578,1743285041979,-19512.66708127,0.00016,2]
[356830579,1743285041994,-908.13501479,0.0001602,2]
[356830580,1743285042004,-236.0,0.00016031,2]
[356830581,1743285042014,-300.0,0.00016039,2]
[356830582,1743285042023,-150.99,0.00016116,2]
[356830583,1743285042033,-2010.35,0.00016116,2]
[356830584,1743285042042,-483.12,0.00016116,2]
[356830585,1743285042052,-151.0,0.00016123,2]
[356830586,1743285042063,-9005.72,0.00016123,2]
[356830587,1743285042074,-731.86,0.00016403,2]
[356830588,1743285042083,-151.0,0.00016438,2]
[356830589,1743285042093,-161.11,0.00016503,2]
[356830590,1743285042102,-500.0,0.00016712,2]
[356830591,1743285042113,-289.94,0.00016781,2]
[356830592,1743285042123,-161.11,0.00017132,2]
[356830593,1743285042133,-877.61,0.00017371,2]
[356830594,1743285042143,-300.0,0.00017409,2]
[356830595,1743285042153,-1000.0,0.00017683,2]
[356830596,1743285042162,-161.11,0.00017761,2]
[356830597,1743285042172,-600.0,0.00017808,2]
[356830598,1743285042181,-1000.0,0.00017808,7]
[356830599,1743285042190,-1000.0,0.00017808,7]
[356830600,1743285042200,-1000.0,0.00017808,7]
[356830601,1743285042209,-1000.0,0.00017808,7]
[356830602,1743285042218,-1000.0,0.00017808,7]
[356830603,1743285042228,-1000.0,0.00017808,7]
[356830604,1743285042237,-1000.0,0.00017808,7]
[356830605,1743285042247,-1000.0,0.00017808,7]
[356830606,1743285042256,-1000.0,0.00017808,7]
[356830607,1743285042266,-1000.0,0.00017808,7]
[356830608,1743285042275,-1000.0,0.00017808,7]
[356830609,1743285042284,-1000.0,0.00017808,7]
[356830610,1743285042293,-1000.0,0.00017808,7]
[356830611,1743285042302,-3951.2312629,0.00017971,2]
[356830612,1743285042311,-2039.0,0.00017984,2]
[356830613,1743285042321,-643.0,0.00017984,2]
[356830614,1743285042331,-1282.0,0.00017984,2]
[356830615,1743285042340,-1422.0,0.00017984,2]
[356830616,1743285042349,-573.0,0.00017984,2]